[Event "*** SCC Grand Prix: Titled Tuesday Blitz"]
[Site "Chess.com"]
[Date "2020.07.21"]
[Round "1"]
[White "chalowey97"]
[Black "davidkalashian"]
[Result "0-1"]
[WhiteElo "2124"]
[BlackElo "2528"]
[TimeControl "180+1"]
[EndTime "10:06:16 PDT"]
[Termination "davidkalashian won by resignation"]

1. d4 {[%clk 0:02:56.4]} 1... Nf6 {[%clk 0:02:58.4]} 2. Nf3 {[%clk 0:02:53.4]}
2... e6 {[%clk 0:02:57.3]} 3. e3 {[%clk 0:02:53.5]} 3... b6 {[%clk 0:02:57.1]}
4. Bd3 {[%clk 0:02:53.4]} 4... Bb7 {[%clk 0:02:57.6]} 5. Nbd2 {[%clk 0:02:53.7]}
5... c5 {[%clk 0:02:56.3]} 6. b3 {[%clk 0:02:53.6]} 6... Be7 {[%clk 0:02:55.3]}
7. Bb2 {[%clk 0:02:53.6]} 7... O-O {[%clk 0:02:55.7]} 8. O-O {[%clk 0:02:54.2]}
8... cxd4 {[%clk 0:02:55.8]} 9. exd4 {[%clk 0:02:54.1]} 9... a6 {[%clk 0:02:56]}
10. c4 {[%clk 0:02:54.3]} 10... d6 {[%clk 0:02:55.6]} 11. Qe2 {[%clk 0:02:54.6]}
11... Nbd7 {[%clk 0:02:55.9]} 12. Rac1 {[%clk 0:02:53.5]} 12... Re8 {[%clk
0:02:55.7]} 13. Rfd1 {[%clk 0:02:53.2]} 13... Nf8 {[%clk 0:02:56.1]} 14. h3
{[%clk 0:02:40.7]} 14... Ng6 {[%clk 0:02:54.8]} 15. Qe3 {[%clk 0:02:38.3]} 15...
Qc7 {[%clk 0:02:49.8]} 16. Qg5 {[%clk 0:02:27.3]} 16... Ne4 {[%clk 0:02:31.5]}
17. Qe3 {[%clk 0:02:23]} 17... Nxd2 {[%clk 0:02:30.6]} 18. Rxd2 {[%clk
0:02:16.1]} 18... Bf6 {[%clk 0:02:27.8]} 19. Bb1 {[%clk 0:01:51.5]} 19... Rac8
{[%clk 0:02:10.5]} 20. Rcd1 {[%clk 0:01:15.4]} 20... b5 {[%clk 0:02:08]} 21. Rc2
{[%clk 0:00:54.6]} 21... bxc4 {[%clk 0:02:05]} 22. bxc4 {[%clk 0:00:54]} 22...
Qd7 {[%clk 0:01:54.1]} 23. c5 {[%clk 0:00:13.9]} 23... Bd5 {[%clk 0:01:48.7]}
24. cxd6 {[%clk 0:00:12]} 24... Qxd6 {[%clk 0:01:48.2]} 25. Rdc1 {[%clk
0:00:11]} 25... Rxc2 {[%clk 0:01:46.7]} 26. Rxc2 {[%clk 0:00:10]} 26... Nf4
{[%clk 0:01:44.2]} 27. Ba3 {[%clk 0:00:09.7]} 27... Qb8 {[%clk 0:01:40.4]} 28.
Rb2 {[%clk 0:00:09.8]} 28... Qc7 {[%clk 0:01:28.3]} 29. Rc2 {[%clk 0:00:10.1]}
29... Qa5 {[%clk 0:01:25.3]} 30. Bc5 {[%clk 0:00:04.6]} 30... Qb5 {[%clk
0:01:16.5]} 31. Rc1 {[%clk 0:00:02.4]} 31... Ne2+ {[%clk 0:01:15.4]} 32. Kh2
{[%clk 0:00:02.9]} 32... Nxc1 {[%clk 0:01:14]} 33. Qxc1 {[%clk 0:00:03.8]} 33...
Bxf3 {[%clk 0:01:10.9]} 34. g3 {[%clk 0:00:03.7]} 34... Ba8 {[%clk 0:01:09.1]}
0-1

[Event "*** SCC Grand Prix: Titled Tuesday Blitz"]
[Site "Chess.com"]
[Date "2020.07.21"]
[Round "1"]
[White "MihailNik"]
[Black "Logman74"]
[Result "1-0"]
[WhiteElo "2669"]
[BlackElo "2328"]
[TimeControl "180+1"]
[EndTime "10:06:17 PDT"]
[Termination "MihailNik won on time"]

1. e4 {[%clk 0:02:59.2]} 1... c5 {[%clk 0:02:59.1]} 2. Nf3 {[%clk 0:02:58.7]}
2... d6 {[%clk 0:02:58.4]} 3. d4 {[%clk 0:02:59]} 3... cxd4 {[%clk 0:02:58.9]}
4. Nxd4 {[%clk 0:02:59.9]} 4... Nf6 {[%clk 0:02:59.1]} 5. Nc3 {[%clk 0:02:59.8]}
5... a6 {[%clk 0:02:59.1]} 6. Bg5 {[%clk 0:02:59.1]} 6... e6 {[%clk 0:02:58.7]}
7. f4 {[%clk 0:02:59.2]} 7... Be7 {[%clk 0:02:58.1]} 8. Qf3 {[%clk 0:02:59.1]}
8... Qc7 {[%clk 0:02:58]} 9. O-O-O {[%clk 0:02:59.3]} 9... Nbd7 {[%clk
0:02:57.9]} 10. Bd3 {[%clk 0:02:59.9]} 10... Nc5 {[%clk 0:02:55.7]} 11. Rhe1
{[%clk 0:02:51.9]} 11... O-O {[%clk 0:02:44]} 12. Kb1 {[%clk 0:02:41.8]} 12...
Rb8 {[%clk 0:02:19.9]} 13. e5 {[%clk 0:02:38.6]} 13... dxe5 {[%clk 0:02:10]} 14.
fxe5 {[%clk 0:02:37.3]} 14... Ne8 {[%clk 0:02:06]} 15. Bxe7 {[%clk 0:02:05.5]}
15... Qxe7 {[%clk 0:02:05.3]} 16. Ne4 {[%clk 0:02:06]} 16... Nxd3 {[%clk
0:01:55.9]} 17. Rxd3 {[%clk 0:02:03.7]} 17... b5 {[%clk 0:01:55.8]} 18. Nc6
{[%clk 0:02:02.3]} 18... Qb7 {[%clk 0:01:50.1]} 19. Nxb8 {[%clk 0:02:01.3]}
19... Qxb8 {[%clk 0:01:50.5]} 20. Qg3 {[%clk 0:01:55.6]} 20... Bb7 {[%clk
0:01:37.1]} 21. Nc5 {[%clk 0:01:49.7]} 21... Bc6 {[%clk 0:01:26.2]} 22. Nd7
{[%clk 0:01:43.9]} 22... Bxd7 {[%clk 0:01:25.7]} 23. Rxd7 {[%clk 0:01:44.8]}
23... Nc7 {[%clk 0:01:26]} 24. h4 {[%clk 0:01:40.7]} 24... Nd5 {[%clk
0:01:25.4]} 25. h5 {[%clk 0:01:38]} 25... h6 {[%clk 0:01:24.8]} 26. Rd6 {[%clk
0:01:35.3]} 26... Qb7 {[%clk 0:01:20.5]} 27. c3 {[%clk 0:01:21.5]} 27... a5
{[%clk 0:01:19.1]} 28. Qd3 {[%clk 0:01:18.2]} 28... Rc8 {[%clk 0:01:10.7]} 29.
g4 {[%clk 0:01:17.1]} 29... b4 {[%clk 0:01:01.8]} 30. c4 {[%clk 0:01:15.9]}
30... Nf4 {[%clk 0:00:46.1]} 31. Qe4 {[%clk 0:01:10.4]} 31... Qxe4+ {[%clk
0:00:35.3]} 32. Rxe4 {[%clk 0:01:11.3]} 32... Nd3 {[%clk 0:00:34.8]} 33. Rxd3
{[%clk 0:01:10.5]} 1-0

[Event "*** SCC Grand Prix: Titled Tuesday Blitz"]
[Site "Chess.com"]
[Date "2020.07.21"]
[Round "1"]
[White "DariaVoit"]
[Black "yuliagok"]
[Result "1-0"]
[WhiteElo "2514"]
[BlackElo "2089"]
[TimeControl "180+1"]
[EndTime "10:06:18 PDT"]
[Termination "DariaVoit won by resignation"]

1. d4 {[%clk 0:03:00.3]} 1... Nf6 {[%clk 0:02:58.2]} 2. Nf3 {[%clk 0:03:00.7]}
2... e6 {[%clk 0:02:56.6]} 3. c4 {[%clk 0:03:01.2]} 3... Bb4+ {[%clk 0:02:53.4]}
4. Bd2 {[%clk 0:03:01]} 4... Be7 {[%clk 0:02:52.2]} 5. g3 {[%clk 0:03:01.3]}
5... b6 {[%clk 0:02:51.4]} 6. Bg2 {[%clk 0:03:01.5]} 6... Bb7 {[%clk 0:02:51]}
7. Nc3 {[%clk 0:03:01.9]} 7... d5 {[%clk 0:02:49.9]} 8. cxd5 {[%clk 0:02:50.8]}
8... exd5 {[%clk 0:02:47]} 9. O-O {[%clk 0:02:50.7]} 9... O-O {[%clk 0:02:45.6]}
10. Rc1 {[%clk 0:02:50.7]} 10... Na6 {[%clk 0:02:38.4]} 11. a3 {[%clk
0:02:45.7]} 11... c5 {[%clk 0:02:32.9]} 12. dxc5 {[%clk 0:02:44.5]} 12... bxc5
{[%clk 0:02:25.9]} 13. Ne5 {[%clk 0:02:33.6]} 13... Qc8 {[%clk 0:02:11.1]} 14.
Bg5 {[%clk 0:02:23.2]} 14... d4 {[%clk 0:02:06]} 15. Na4 {[%clk 0:02:10.9]}
15... Bxg2 {[%clk 0:02:03.9]} 16. Kxg2 {[%clk 0:02:11.8]} 16... Qb7+ {[%clk
0:02:02]} 17. Kg1 {[%clk 0:02:06.8]} 17... Qd5 {[%clk 0:01:42.7]} 18. Bxf6
{[%clk 0:02:03.9]} 18... Bxf6 {[%clk 0:01:40.9]} 19. Nc4 {[%clk 0:02:02.6]}
19... Rab8 {[%clk 0:01:33.7]} 20. Qc2 {[%clk 0:01:46]} 20... Rfd8 {[%clk
0:01:29]} 21. Rfd1 {[%clk 0:01:45.1]} 21... Qh5 {[%clk 0:01:18.6]} 22. Na5
{[%clk 0:01:39.8]} 22... Bg5 {[%clk 0:01:07.4]} 23. f4 {[%clk 0:01:36]} 23...
Bf6 {[%clk 0:01:02.3]} 24. Nc6 {[%clk 0:01:35.8]} 24... d3 {[%clk 0:00:56.1]}
25. Rxd3 {[%clk 0:01:34]} 25... Rxd3 {[%clk 0:00:54.2]} 26. Qxd3 {[%clk
0:01:34.9]} 26... Re8 {[%clk 0:00:46]} 27. Qxa6 {[%clk 0:01:31.7]} 27... g5
{[%clk 0:00:34.8]} 28. Ne5 {[%clk 0:01:22.6]} 28... Bxe5 {[%clk 0:00:29.8]} 29.
fxe5 {[%clk 0:01:23.5]} 29... Rxe5 {[%clk 0:00:28.4]} 30. Nc3 {[%clk 0:01:23.1]}
30... g4 {[%clk 0:00:21.1]} 31. Rf1 {[%clk 0:01:20.2]} 31... Qg5 {[%clk
0:00:17.2]} 32. Qf6 {[%clk 0:01:14.3]} 32... Qe3+ {[%clk 0:00:16.6]} 33. Qf2
{[%clk 0:01:13.4]} 33... Qxf2+ {[%clk 0:00:12.4]} 34. Rxf2 {[%clk 0:01:13.6]}
34... f5 {[%clk 0:00:12.4]} 35. Rf4 {[%clk 0:01:13.3]} 35... Kf7 {[%clk
0:00:11.7]} 36. Kf2 {[%clk 0:01:13.5]} 36... Ke6 {[%clk 0:00:11.1]} 37. Ra4
{[%clk 0:01:14]} 1-0

[Event "*** SCC Grand Prix: Titled Tuesday Blitz"]
[Site "Chess.com"]
[Date "2020.07.21"]
[Round "1"]
[White "lacafi"]
[Black "Skatchkov_V"]
[Result "0-1"]
[WhiteElo "2232"]
[BlackElo "2584"]
[TimeControl "180+1"]
[EndTime "10:06:24 PDT"]
[Termination "Skatchkov_V won on time"]

1. d4 {[%clk 0:03:00.9]} 1... Nf6 {[%clk 0:02:58.8]} 2. Nf3 {[%clk 0:03:01.1]}
2... e6 {[%clk 0:02:58.9]} 3. e3 {[%clk 0:03:01.1]} 3... b6 {[%clk 0:02:58.9]}
4. Bd3 {[%clk 0:03:01.7]} 4... Bb7 {[%clk 0:02:59.6]} 5. Nbd2 {[%clk 0:03:02.1]}
5... d5 {[%clk 0:02:56.8]} 6. Qe2 {[%clk 0:03:02.3]} 6... Nbd7 {[%clk
0:02:55.9]} 7. O-O {[%clk 0:03:00.8]} 7... c5 {[%clk 0:02:56.2]} 8. c3 {[%clk
0:03:00.5]} 8... Bd6 {[%clk 0:02:55.2]} 9. e4 {[%clk 0:03:00.5]} 9... dxe4
{[%clk 0:02:51.3]} 10. Nxe4 {[%clk 0:03:00.1]} 10... Nxe4 {[%clk 0:02:51.7]} 11.
Bxe4 {[%clk 0:03:00.7]} 11... Qc7 {[%clk 0:02:51.5]} 12. h3 {[%clk 0:02:50.9]}
12... Nf6 {[%clk 0:02:49]} 13. Bxb7 {[%clk 0:02:44.9]} 13... Qxb7 {[%clk
0:02:49.9]} 14. Re1 {[%clk 0:02:10.3]} 14... O-O {[%clk 0:02:48.9]} 15. Ne5
{[%clk 0:02:00.5]} 15... cxd4 {[%clk 0:02:43.1]} 16. cxd4 {[%clk 0:02:01.4]}
16... Bb4 {[%clk 0:02:41.8]} 17. Rd1 {[%clk 0:01:54.8]} 17... Rfd8 {[%clk
0:02:31.2]} 18. a3 {[%clk 0:01:47]} 18... Be7 {[%clk 0:02:29.9]} 19. Bg5 {[%clk
0:01:43.5]} 19... Nd5 {[%clk 0:02:25.3]} 20. Bxe7 {[%clk 0:01:38.9]} 20... Nxe7
{[%clk 0:02:24]} 21. Rac1 {[%clk 0:01:31.8]} 21... Rac8 {[%clk 0:02:19.8]} 22.
Rxc8 {[%clk 0:01:21.5]} 22... Rxc8 {[%clk 0:02:20.5]} 23. Qb5 {[%clk 0:00:50.4]}
23... Rd8 {[%clk 0:02:18.8]} 24. b4 {[%clk 0:00:36.4]} 24... h6 {[%clk
0:02:15.5]} 25. Nf3 {[%clk 0:00:34.9]} 25... Nf5 {[%clk 0:02:11.4]} 26. a4
{[%clk 0:00:23.5]} 26... Rd5 {[%clk 0:02:08.3]} 27. Qc4 {[%clk 0:00:22]} 27...
a6 {[%clk 0:01:58.5]} 28. Kf1 {[%clk 0:00:21]} 28... b5 {[%clk 0:01:49.2]} 29.
axb5 {[%clk 0:00:19]} 29... axb5 {[%clk 0:01:50.1]} 30. Qc3 {[%clk 0:00:16.9]}
30... Rd6 {[%clk 0:01:44.7]} 31. Ne5 {[%clk 0:00:15.4]} 31... Rd8 {[%clk
0:01:25.1]} 32. g4 {[%clk 0:00:11.9]} 32... Qh1+ {[%clk 0:01:19.8]} 33. Ke2
{[%clk 0:00:12]} 33... Qe4+ {[%clk 0:01:19.9]} 34. Kf1 {[%clk 0:00:12.4]} 34...
Nxd4 {[%clk 0:01:14.8]} 0-1

[Event "*** SCC Grand Prix: Titled Tuesday Blitz"]
[Site "Chess.com"]
[Date "2020.07.21"]
[Round "1"]
[White "Susal_De_Silva"]
[Black "merei7"]
[Result "1-0"]
[WhiteElo "2308"]
[BlackElo "2613"]
[TimeControl "180+1"]
[EndTime "10:06:26 PDT"]
[Termination "Susal_De_Silva won by checkmate"]

1. e4 {[%clk 0:03:00.9]} 1... c5 {[%clk 0:02:58.7]} 2. Nf3 {[%clk 0:03:01.1]}
2... Nc6 {[%clk 0:02:58.3]} 3. Bb5 {[%clk 0:03:01]} 3... g6 {[%clk 0:02:57.8]}
4. Bxc6 {[%clk 0:03:00.9]} 4... dxc6 {[%clk 0:02:58.7]} 5. d3 {[%clk 0:03:00.6]}
5... Bg7 {[%clk 0:02:59.2]} 6. h3 {[%clk 0:03:00.9]} 6... e5 {[%clk 0:02:57.5]}
7. O-O {[%clk 0:03:01]} 7... Qd6 {[%clk 0:02:56]} 8. Nc3 {[%clk 0:03:00.5]} 8...
Nf6 {[%clk 0:02:55]} 9. Be3 {[%clk 0:02:59]} 9... O-O {[%clk 0:02:53.8]} 10. a4
{[%clk 0:02:56.7]} 10... Nd7 {[%clk 0:02:52.2]} 11. Nd2 {[%clk 0:02:56.5]} 11...
b6 {[%clk 0:02:51]} 12. Nc4 {[%clk 0:02:54.8]} 12... Qe7 {[%clk 0:02:51.3]} 13.
f4 {[%clk 0:02:54.4]} 13... exf4 {[%clk 0:02:50.7]} 14. Bxf4 {[%clk 0:02:54.2]}
14... Ne5 {[%clk 0:02:51]} 15. Nxe5 {[%clk 0:02:47.3]} 15... Bxe5 {[%clk
0:02:51.9]} 16. Qd2 {[%clk 0:02:45.2]} 16... Bxf4 {[%clk 0:02:37]} 17. Qxf4
{[%clk 0:02:44]} 17... Be6 {[%clk 0:02:37.9]} 18. e5 {[%clk 0:02:36.4]} 18...
Bd5 {[%clk 0:02:33.9]} 19. Rae1 {[%clk 0:02:23.1]} 19... Rae8 {[%clk 0:02:33.7]}
20. Re2 {[%clk 0:01:50.9]} 20... Qe6 {[%clk 0:02:21.7]} 21. Rfe1 {[%clk
0:01:49]} 21... b5 {[%clk 0:02:21.8]} 22. axb5 {[%clk 0:01:48.1]} 22... cxb5
{[%clk 0:02:22.4]} 23. Nxb5 {[%clk 0:01:44.9]} 23... c4 {[%clk 0:02:04.6]} 24.
d4 {[%clk 0:01:38.2]} 24... Qb6 {[%clk 0:01:56.9]} 25. Nc3 {[%clk 0:01:36.8]}
25... Bb7 {[%clk 0:01:55.6]} 26. Kh2 {[%clk 0:01:27.4]} 26... Qxb2 {[%clk
0:01:54.7]} 27. Qe3 {[%clk 0:01:21.3]} 27... a5 {[%clk 0:01:49.4]} 28. d5 {[%clk
0:01:20.6]} 28... Ba8 {[%clk 0:01:34.4]} 29. Qg3 {[%clk 0:01:14.6]} 29... a4
{[%clk 0:01:31.9]} 30. Ne4 {[%clk 0:01:10.9]} 30... Kg7 {[%clk 0:01:25.8]} 31.
Nf6 {[%clk 0:01:08.9]} 31... Re7 {[%clk 0:01:22.3]} 32. Qg5 {[%clk 0:01:07.6]}
32... Qb7 {[%clk 0:01:10]} 33. Ng4 {[%clk 0:00:57.9]} 33... Rfe8 {[%clk
0:00:19.7]} 34. Qf6+ {[%clk 0:00:52.9]} 34... Kg8 {[%clk 0:00:19.1]} 35. Nh6+
{[%clk 0:00:52.7]} 35... Kf8 {[%clk 0:00:19]} 36. Qh8# {[%clk 0:00:52.8]} 1-0

[Event "*** SCC Grand Prix: Titled Tuesday Blitz"]
[Site "Chess.com"]
[Date "2020.07.21"]
[Round "1"]
[White "Twitch_ElhamBlitz05"]
[Black "pooh2012"]
[Result "1-0"]
[WhiteElo "2809"]
[BlackElo "2406"]
[TimeControl "180+1"]
[EndTime "10:06:27 PDT"]
[Termination "Twitch_ElhamBlitz05 won by checkmate"]

1. e4 {[%clk 0:03:00.9]} 1... c6 {[%clk 0:02:58.9]} 2. d4 {[%clk 0:02:56.5]}
2... d5 {[%clk 0:02:58.6]} 3. Nc3 {[%clk 0:02:56.9]} 3... dxe4 {[%clk
0:02:57.9]} 4. Nxe4 {[%clk 0:02:57.7]} 4... Nd7 {[%clk 0:02:58.3]} 5. Nf3 {[%clk
0:02:57.2]} 5... Ngf6 {[%clk 0:02:54.7]} 6. Bd3 {[%clk 0:02:57.6]} 6... Nxe4
{[%clk 0:02:54]} 7. Bxe4 {[%clk 0:02:56.9]} 7... Nf6 {[%clk 0:02:54.6]} 8. Bd3
{[%clk 0:02:56.8]} 8... Bg4 {[%clk 0:02:54.5]} 9. c3 {[%clk 0:02:56.4]} 9... e6
{[%clk 0:02:49.9]} 10. O-O {[%clk 0:02:56.2]} 10... Bd6 {[%clk 0:02:46.6]} 11.
h3 {[%clk 0:02:56.3]} 11... Bh5 {[%clk 0:02:46.2]} 12. Re1 {[%clk 0:02:55.3]}
12... Qc7 {[%clk 0:02:33.2]} 13. Bg5 {[%clk 0:02:54.3]} 13... Nd5 {[%clk
0:02:23]} 14. Be2 {[%clk 0:02:50]} 14... Nf4 {[%clk 0:02:12.8]} 15. Bxf4 {[%clk
0:02:49.2]} 15... Bxf4 {[%clk 0:02:13.3]} 16. Ne5 {[%clk 0:02:49.5]} 16... Bxe2
{[%clk 0:02:11.6]} 17. Qxe2 {[%clk 0:02:49.8]} 17... O-O {[%clk 0:02:07]} 18.
Rad1 {[%clk 0:02:45]} 18... Rad8 {[%clk 0:02:06]} 19. Qg4 {[%clk 0:02:39.9]}
19... Bxe5 {[%clk 0:02:01]} 20. Rxe5 {[%clk 0:02:40.8]} 20... Rd5 {[%clk
0:01:57]} 21. Rde1 {[%clk 0:02:39]} 21... Rfd8 {[%clk 0:01:47.6]} 22. f4 {[%clk
0:02:37.3]} 22... c5 {[%clk 0:01:36.1]} 23. f5 {[%clk 0:02:31.4]} 23... Rxe5
{[%clk 0:01:15.4]} 24. Rxe5 {[%clk 0:02:15.2]} 24... exf5 {[%clk 0:01:08.1]} 25.
Qf4 {[%clk 0:01:55.6]} 25... Qb6 {[%clk 0:00:30]} 26. Rxc5 {[%clk 0:01:48.3]}
26... Qxb2 {[%clk 0:00:28.1]} 27. Qxf5 {[%clk 0:01:44.8]} 27... Qa1+ {[%clk
0:00:21.3]} 28. Kh2 {[%clk 0:01:44]} 28... h6 {[%clk 0:00:07.8]} 29. Rc7 {[%clk
0:01:41.8]} 29... Qxa2 {[%clk 0:00:07]} 30. Rxb7 {[%clk 0:01:35.2]} 30... a5
{[%clk 0:00:07.3]} 31. Rc7 {[%clk 0:01:26.2]} 31... Qd5 {[%clk 0:00:04.2]} 32.
Qxd5 {[%clk 0:01:18.8]} 32... Rxd5 {[%clk 0:00:05.1]} 33. Ra7 {[%clk 0:01:18.1]}
33... Kf8 {[%clk 0:00:04]} 34. Kg3 {[%clk 0:01:17.8]} 34... Rb5 {[%clk
0:00:04.2]} 35. Kf4 {[%clk 0:01:16.3]} 35... Rb3 {[%clk 0:00:04.5]} 36. Rc7
{[%clk 0:01:16.6]} 36... a4 {[%clk 0:00:04.1]} 37. Ke4 {[%clk 0:01:17.1]} 37...
a3 {[%clk 0:00:04.2]} 38. Kd3 {[%clk 0:01:17.5]} 38... Rb2 {[%clk 0:00:03.1]}
39. Ra7 {[%clk 0:01:17.9]} 39... a2 {[%clk 0:00:03.5]} 40. c4 {[%clk 0:01:16.2]}
40... Rxg2 {[%clk 0:00:02.8]} 41. c5 {[%clk 0:01:16.4]} 41... Ke8 {[%clk
0:00:03.4]} 42. c6 {[%clk 0:01:16.1]} 42... Kd8 {[%clk 0:00:04]} 43. d5 {[%clk
0:01:16.1]} 43... Kc8 {[%clk 0:00:04.5]} 44. d6 {[%clk 0:01:16.3]} 44... Rg6
{[%clk 0:00:04.9]} 45. Ra8# {[%clk 0:01:16.1]} 1-0

[Event "*** SCC Grand Prix: Titled Tuesday Blitz"]
[Site "Chess.com"]
[Date "2020.07.21"]
[Round "1"]
[White "Shushik"]
[Black "SCIM"]
[Result "0-1"]
[WhiteElo "2203"]
[BlackElo "2570"]
[TimeControl "180+1"]
[EndTime "10:06:27 PDT"]
[Termination "SCIM won by resignation"]

1. e4 {[%clk 0:03:00.9]} 1... c5 {[%clk 0:02:58.9]} 2. Nf3 {[%clk 0:03:00.6]}
2... e6 {[%clk 0:02:59.1]} 3. d4 {[%clk 0:03:00.6]} 3... cxd4 {[%clk 0:03:00]}
4. Nxd4 {[%clk 0:03:00.7]} 4... Nc6 {[%clk 0:03:00.5]} 5. Nc3 {[%clk 0:03:00.5]}
5... Qc7 {[%clk 0:02:59.6]} 6. Be3 {[%clk 0:02:59.8]} 6... a6 {[%clk 0:02:59.8]}
7. Qf3 {[%clk 0:02:57.5]} 7... d6 {[%clk 0:02:58.1]} 8. O-O-O {[%clk 0:02:56.7]}
8... Bd7 {[%clk 0:02:57.6]} 9. Qg3 {[%clk 0:02:55.4]} 9... Rc8 {[%clk
0:02:57.5]} 10. f4 {[%clk 0:02:51.2]} 10... Nf6 {[%clk 0:02:53.2]} 11. Nxc6
{[%clk 0:02:45.2]} 11... Bxc6 {[%clk 0:02:50.4]} 12. e5 {[%clk 0:02:44.9]} 12...
Ne4 {[%clk 0:02:37.9]} 13. Nxe4 {[%clk 0:02:38]} 13... Bxe4 {[%clk 0:02:38.8]}
14. c3 {[%clk 0:02:37.8]} 14... dxe5 {[%clk 0:02:27.2]} 15. fxe5 {[%clk
0:02:27.8]} 15... Bg6 {[%clk 0:02:16]} 16. h4 {[%clk 0:02:16.2]} 16... h5 {[%clk
0:02:00.6]} 17. Bd3 {[%clk 0:02:15]} 17... Ba3 {[%clk 0:01:40.9]} 18. Bd4 {[%clk
0:01:53.3]} 18... Bxd3 {[%clk 0:01:31.1]} 19. Qxd3 {[%clk 0:01:52.5]} 19... Be7
{[%clk 0:01:29.5]} 20. Rh3 {[%clk 0:01:26.7]} 20... Qc4 {[%clk 0:01:18.6]} 21.
Qxc4 {[%clk 0:01:22.8]} 21... Rxc4 {[%clk 0:01:19.5]} 22. Rhd3 {[%clk
0:00:51.8]} 22... O-O {[%clk 0:01:14.7]} 23. g3 {[%clk 0:00:50.1]} 23... Rd8
{[%clk 0:01:07.9]} 24. Bf2 {[%clk 0:00:43.5]} 24... Rxd3 {[%clk 0:01:07]} 25.
Rxd3 {[%clk 0:00:43.4]} 25... b5 {[%clk 0:01:03]} 26. Rd7 {[%clk 0:00:41.9]}
26... Bc5 {[%clk 0:01:02.2]} 27. Bxc5 {[%clk 0:00:38.8]} 27... Rxc5 {[%clk
0:01:03.1]} 28. Ra7 {[%clk 0:00:38.8]} 28... Rxe5 {[%clk 0:01:00.8]} 29. Rxa6
{[%clk 0:00:38.9]} 29... g5 {[%clk 0:01:01.4]} 30. Rb6 {[%clk 0:00:33.3]} 30...
gxh4 {[%clk 0:00:57.6]} 31. gxh4 {[%clk 0:00:33.1]} 31... f5 {[%clk 0:00:58.5]}
32. c4 {[%clk 0:00:28.8]} 32... bxc4 {[%clk 0:00:54.1]} 33. a4 {[%clk
0:00:28.7]} 33... f4 {[%clk 0:00:51.8]} 34. Rd6 {[%clk 0:00:25.1]} 34... f3
{[%clk 0:00:50.2]} 35. Rd1 {[%clk 0:00:24.7]} 35... f2 {[%clk 0:00:49.8]} 36.
Kd2 {[%clk 0:00:23.8]} 36... Rd5+ {[%clk 0:00:49.4]} 0-1

[Event "*** SCC Grand Prix: Titled Tuesday Blitz"]
[Site "Chess.com"]
[Date "2020.07.21"]
[Round "1"]
[White "Julianos82"]
[Black "GMartin_Petrov"]
[Result "0-1"]
[WhiteElo "2262"]
[BlackElo "2609"]
[TimeControl "180+1"]
[EndTime "10:06:28 PDT"]
[Termination "GMartin_Petrov won by resignation"]

1. d4 {[%clk 0:03:00.6]} 1... Nf6 {[%clk 0:02:58.7]} 2. Nf3 {[%clk 0:02:59.5]}
2... d5 {[%clk 0:02:58.2]} 3. Bf4 {[%clk 0:02:54.7]} 3... e6 {[%clk 0:02:57.4]}
4. Nbd2 {[%clk 0:02:53.2]} 4... Bd6 {[%clk 0:02:57.7]} 5. e3 {[%clk 0:02:51.9]}
5... O-O {[%clk 0:02:57]} 6. Bd3 {[%clk 0:02:51.3]} 6... c5 {[%clk 0:02:55.8]}
7. c3 {[%clk 0:02:51.3]} 7... b6 {[%clk 0:02:51]} 8. Ne5 {[%clk 0:02:50.1]} 8...
Bb7 {[%clk 0:02:47.8]} 9. Qf3 {[%clk 0:02:48.6]} 9... Nc6 {[%clk 0:02:35.6]} 10.
Qh3 {[%clk 0:02:38.3]} 10... h6 {[%clk 0:02:32.8]} 11. g4 {[%clk 0:02:04.2]}
11... Bxe5 {[%clk 0:02:31.9]} 12. dxe5 {[%clk 0:01:49.5]} 12... Nd7 {[%clk
0:02:31.7]} 13. g5 {[%clk 0:01:36.2]} 13... Ncxe5 {[%clk 0:02:28.7]} 14. Bc2
{[%clk 0:01:34.3]} 14... d4 {[%clk 0:02:21.5]} 15. gxh6 {[%clk 0:01:12.2]} 15...
g6 {[%clk 0:01:46]} 16. h7+ {[%clk 0:01:01.3]} 16... Kh8 {[%clk 0:01:45.4]} 17.
exd4 {[%clk 0:00:53.7]} 17... cxd4 {[%clk 0:01:43.2]} 18. cxd4 {[%clk
0:00:52.3]} 18... Bxh1 {[%clk 0:01:40.2]} 19. dxe5 {[%clk 0:00:50]} 19... Rc8
{[%clk 0:01:37]} 20. Rc1 {[%clk 0:00:30]} 20... Nc5 {[%clk 0:01:30.6]} 21. Kd1
{[%clk 0:00:20.5]} 21... Qd5 {[%clk 0:01:12.5]} 22. Qh4 {[%clk 0:00:17]} 22...
Bf3+ {[%clk 0:01:08.3]} 23. Ke1 {[%clk 0:00:16]} 23... Nd3+ {[%clk 0:01:08.5]}
24. Kf1 {[%clk 0:00:15.1]} 24... Nxc1 {[%clk 0:00:49.3]} 25. Qf6+ {[%clk
0:00:11.5]} 25... Kxh7 {[%clk 0:00:49.4]} 26. Qh4+ {[%clk 0:00:11.7]} 26... Kg8
{[%clk 0:00:49.5]} 27. Bxg6 {[%clk 0:00:10.1]} 27... fxg6 {[%clk 0:00:45.7]} 28.
Qh6 {[%clk 0:00:10.3]} 28... Qd3+ {[%clk 0:00:40.9]} 29. Kg1 {[%clk 0:00:09.6]}
29... Ne2+ {[%clk 0:00:40.9]} 0-1

[Event "*** SCC Grand Prix: Titled Tuesday Blitz"]
[Site "Chess.com"]
[Date "2020.07.21"]
[Round "1"]
[White "aa175"]
[Black "KratosKrieg"]
[Result "1-0"]
[WhiteElo "2480"]
[BlackElo "1924"]
[TimeControl "180+1"]
[EndTime "10:06:28 PDT"]
[Termination "aa175 won on time"]

1. d4 {[%clk 0:03:00.9]} 1... d5 {[%clk 0:02:59.6]} 2. Bf4 {[%clk 0:02:59.5]}
2... Nf6 {[%clk 0:02:58.6]} 3. e3 {[%clk 0:02:59.5]} 3... e6 {[%clk 0:02:59.2]}
4. Nf3 {[%clk 0:02:59.2]} 4... Bd6 {[%clk 0:02:59.6]} 5. Nbd2 {[%clk 0:02:59.7]}
5... O-O {[%clk 0:02:59.2]} 6. Bd3 {[%clk 0:02:58.6]} 6... c5 {[%clk 0:02:59.7]}
7. c3 {[%clk 0:02:58.5]} 7... Nc6 {[%clk 0:02:58.3]} 8. Bg3 {[%clk 0:02:53.4]}
8... b6 {[%clk 0:02:53.3]} 9. e4 {[%clk 0:02:52.8]} 9... dxe4 {[%clk 0:02:18.1]}
10. Nxe4 {[%clk 0:02:53.7]} 10... Bxg3 {[%clk 0:02:01.4]} 11. hxg3 {[%clk
0:02:38.2]} 11... h6 {[%clk 0:01:53]} 12. dxc5 {[%clk 0:02:31.7]} 12... bxc5
{[%clk 0:01:42.8]} 13. Nxc5 {[%clk 0:02:24.4]} 13... Qb6 {[%clk 0:01:32.8]} 14.
Nb3 {[%clk 0:02:14.7]} 14... a5 {[%clk 0:01:15.2]} 15. g4 {[%clk 0:01:59]} 15...
Rd8 {[%clk 0:01:03.7]} 16. g5 {[%clk 0:01:45.5]} 16... Ba6 {[%clk 0:00:49.2]}
17. Nbd4 {[%clk 0:01:23.5]} 17... Bxd3 {[%clk 0:00:34.9]} 18. Qxd3 {[%clk
0:01:03.6]} 18... Nxd4 {[%clk 0:00:20.2]} 19. gxf6 {[%clk 0:00:44.6]} 19...
Nxf3+ {[%clk 0:00:13.6]} 20. Qxf3 {[%clk 0:00:43.6]} 20... Qxb2 {[%clk
0:00:13.1]} 21. O-O {[%clk 0:00:42.2]} 21... gxf6 {[%clk 0:00:09.3]} 22. Qxf6
{[%clk 0:00:41.9]} 22... Rac8 {[%clk 0:00:08.5]} 23. Rad1 {[%clk 0:00:36.2]}
23... Rxd1 {[%clk 0:00:05.2]} 24. Rxd1 {[%clk 0:00:37.1]} 24... Qb7 {[%clk
0:00:01.1]} 25. Rd3 {[%clk 0:00:35.1]} 1-0